[Event "Early-Titled-Tuesday-Blitz-August-29-2023"]
[Site "Chess.com"]
[Date "2023.08.29"]
[Round "4"]
[White "BlitzWizard04"]
[Black "MITerryble"]
[Result "0-1"]
[WhiteElo "2603"]
[BlackElo "2941"]
[TimeControl "180+1"]
[EndTime "8:39:01 PDT"]
[Termination "MITerryble won by resignation"]

1. e4 {[%clk 0:03:00.9]} 1... e6 {[%clk 0:02:59.9]} 2. d4 {[%clk 0:03:00.5]}
2... d5 {[%clk 0:03:00.4]} 3. Nc3 {[%clk 0:03:01.3]} 3... Nf6 {[%clk 0:03:00.7]}
4. Bg5 {[%clk 0:03:01.2]} 4... Bb4 {[%clk 0:03:00.7]} 5. e5 {[%clk 0:03:02]}
5... h6 {[%clk 0:03:01.2]} 6. Be3 {[%clk 0:03:02.5]} 6... Ne4 {[%clk 0:03:01.3]}
7. Qg4 {[%clk 0:03:03.3]} 7... Kf8 {[%clk 0:03:01.8]} 8. a3 {[%clk 0:03:03.9]}
8... Bxc3+ {[%clk 0:03:02.1]} 9. bxc3 {[%clk 0:03:04.6]} 9... Nxc3 {[%clk
0:03:03]} 10. Bd3 {[%clk 0:03:03.1]} 10... c5 {[%clk 0:03:03.5]} 11. dxc5 {[%clk
0:03:03.3]} 11... Nc6 {[%clk 0:03:04.1]} 12. Nf3 {[%clk 0:03:02.6]} 12... f5
{[%clk 0:03:04.7]} 13. exf6 {[%clk 0:02:58.3]} 13... Qxf6 {[%clk 0:03:04.5]} 14.
Qf4 {[%clk 0:02:24.7]} 14... e5 {[%clk 0:02:57.8]} 15. Qxf6+ {[%clk 0:02:23.9]}
15... gxf6 {[%clk 0:02:58.7]} 16. Nh4 {[%clk 0:02:21.4]} 16... Kf7 {[%clk
0:02:53.5]} 17. Bg6+ {[%clk 0:02:17]} 17... Kg7 {[%clk 0:02:50.1]} 18. Bd2
{[%clk 0:02:17.6]} 18... Na4 {[%clk 0:02:47.3]} 19. Bf5 {[%clk 0:02:14.4]} 19...
Nxc5 {[%clk 0:02:44.3]} 20. Rb1 {[%clk 0:02:13.8]} 20... Bxf5 {[%clk 0:02:39.3]}
21. Nxf5+ {[%clk 0:02:13.7]} 21... Kg6 {[%clk 0:02:40.2]} 22. g4 {[%clk
0:02:13.4]} 22... h5 {[%clk 0:02:39.9]} 23. Nh4+ {[%clk 0:02:12.4]} 23... Kf7
{[%clk 0:02:39.8]} 24. h3 {[%clk 0:02:03.2]} 24... hxg4 {[%clk 0:02:39.9]} 25.
hxg4 {[%clk 0:02:03]} 25... Nd4 {[%clk 0:02:35.7]} 26. Be3 {[%clk 0:01:44.1]}
26... Nxc2+ {[%clk 0:02:30.9]} 27. Kd2 {[%clk 0:01:44.7]} 27... Nxe3 {[%clk
0:02:29.4]} 28. Kxe3 {[%clk 0:01:45.5]} 28... d4+ {[%clk 0:02:28.4]} 29. Kf3
{[%clk 0:01:45.3]} 29... b6 {[%clk 0:02:24.8]} 30. Nf5 {[%clk 0:01:43.2]} 30...
Ke6 {[%clk 0:02:25.1]} 31. Rhe1 {[%clk 0:01:40.6]} 31... Kd5 {[%clk 0:02:19.4]}
32. Rbd1 {[%clk 0:01:36.5]} 32... Rh3+ {[%clk 0:02:15.2]} 33. Ng3 {[%clk
0:01:37]} 33... Rg8 {[%clk 0:02:09.1]} 34. Rh1 {[%clk 0:01:33.7]} 34... e4+
{[%clk 0:01:38.3]} 35. Kf4 {[%clk 0:01:30.5]} 35... Rg5 {[%clk 0:01:30.2]} 36.
Rxd4+ {[%clk 0:00:28.3]} 36... Kxd4 {[%clk 0:01:29.2]} 37. Ne2+ {[%clk
0:00:28.6]} 37... Kd3 {[%clk 0:01:29.7]} 38. Nc1+ {[%clk 0:00:25.9]} 38... Kc2
{[%clk 0:01:29.6]} 39. Rxh3 {[%clk 0:00:26.3]} 39... Kxc1 {[%clk 0:01:30.2]} 40.
Rh6 {[%clk 0:00:27]} 40... Nd7 {[%clk 0:01:02.6]} 41. Rh7 {[%clk 0:00:23.8]}
41... Ne5 {[%clk 0:00:59.8]} 42. Rxa7 {[%clk 0:00:22]} 42... Nxg4 {[%clk
0:00:57.5]} 43. Kxe4 {[%clk 0:00:18.3]} 43... Nxf2+ {[%clk 0:00:57.9]} 44. Ke3
{[%clk 0:00:18]} 44... Nd1+ {[%clk 0:00:57.1]} 45. Kf4 {[%clk 0:00:17.7]} 45...
Nc3 {[%clk 0:00:55.7]} 46. Rb7 {[%clk 0:00:15.8]} 46... Kc2 {[%clk 0:00:55.2]}
47. Kf3 {[%clk 0:00:11]} 47... b5 {[%clk 0:00:55.4]} 48. Rb6 {[%clk 0:00:10.1]}
48... Rf5+ {[%clk 0:00:54.7]} 49. Kg4 {[%clk 0:00:09.7]} 49... Rf1 {[%clk
0:00:55]} 0-1

[Event "Early-Titled-Tuesday-Blitz-August-29-2023"]
[Site "Chess.com"]
[Date "2023.08.29"]
[Round "4"]
[White "KorolDimitriy75"]
[Black "Djager97"]
[Result "0-1"]
[WhiteElo "2350"]
[BlackElo "2606"]
[TimeControl "180+1"]
[EndTime "8:39:01 PDT"]
[Termination "Djager97 won by resignation"]

1. d4 {[%clk 0:03:00.9]} 1... d5 {[%clk 0:02:59.7]} 2. c4 {[%clk 0:03:01]} 2...
e6 {[%clk 0:03:00]} 3. Nc3 {[%clk 0:03:01.1]} 3... c6 {[%clk 0:02:59.7]} 4. e3
{[%clk 0:03:00.9]} 4... Nf6 {[%clk 0:02:59.2]} 5. Nf3 {[%clk 0:03:00.7]} 5...
Nbd7 {[%clk 0:02:59.5]} 6. Bd3 {[%clk 0:03:00.7]} 6... Be7 {[%clk 0:02:51.9]} 7.
O-O {[%clk 0:02:59.9]} 7... b6 {[%clk 0:02:41.3]} 8. e4 {[%clk 0:02:59.7]} 8...
dxe4 {[%clk 0:02:41.4]} 9. Nxe4 {[%clk 0:03:00.6]} 9... Bb7 {[%clk 0:02:40.6]}
10. Re1 {[%clk 0:02:12.1]} 10... O-O {[%clk 0:02:39.9]} 11. Bf4 {[%clk
0:02:07.5]} 11... Nxe4 {[%clk 0:02:26.1]} 12. Bxe4 {[%clk 0:02:08.4]} 12... Nf6
{[%clk 0:02:26.3]} 13. Bc2 {[%clk 0:02:07.7]} 13... c5 {[%clk 0:02:25.9]} 14.
dxc5 {[%clk 0:01:48.6]} 14... Qxd1 {[%clk 0:02:16.5]} 15. Raxd1 {[%clk
0:01:47.1]} 15... Bxc5 {[%clk 0:01:51.8]} 16. Ne5 {[%clk 0:01:35.7]} 16... Rfd8
{[%clk 0:01:46]} 17. Kf1 {[%clk 0:01:05.4]} 17... Bd4 {[%clk 0:01:45.2]} 18. b3
{[%clk 0:00:52.6]} 18... Kf8 {[%clk 0:01:14.7]} 19. h3 {[%clk 0:00:36.2]} 19...
Bc3 {[%clk 0:01:07]} 20. Rxd8+ {[%clk 0:00:33.8]} 20... Rxd8 {[%clk 0:01:07.9]}
21. Rd1 {[%clk 0:00:34.1]} 21... Rxd1+ {[%clk 0:01:08.3]} 22. Bxd1 {[%clk
0:00:34.9]} 22... Ke7 {[%clk 0:01:08.3]} 23. g4 {[%clk 0:00:18.6]} 23... g5
{[%clk 0:00:57.5]} 24. Bg3 {[%clk 0:00:18]} 24... Ne4 {[%clk 0:00:51.7]} 25. Bh2
{[%clk 0:00:18]} 25... f6 {[%clk 0:00:44.4]} 26. Nd3 {[%clk 0:00:16.5]} 26... e5
{[%clk 0:00:36.5]} 27. f3 {[%clk 0:00:14.6]} 27... Nd2+ {[%clk 0:00:25.7]} 28.
Kf2 {[%clk 0:00:15]} 28... Bd4+ {[%clk 0:00:26]} 29. Kg3 {[%clk 0:00:13.9]}
29... e4 {[%clk 0:00:16.2]} 30. fxe4 {[%clk 0:00:13.6]} 30... Nxe4+ {[%clk
0:00:17.1]} 31. Kf3 {[%clk 0:00:10.8]} 31... Nc3+ {[%clk 0:00:17.4]} 32. Kg3
{[%clk 0:00:08.8]} 32... Nxd1 {[%clk 0:00:18]} 0-1

[Event "Early-Titled-Tuesday-Blitz-August-29-2023"]
[Site "Chess.com"]
[Date "2023.08.29"]
[Round "4"]
[White "cottage_cheese"]
[Black "ElenaPershina"]
[Result "1-0"]
[WhiteElo "2303"]
[BlackElo "2398"]
[TimeControl "180+1"]
[EndTime "8:39:01 PDT"]
[Termination "cottage_cheese won by checkmate"]

1. e4 {[%clk 0:03:00.9]} 1... c5 {[%clk 0:03:00.2]} 2. Nf3 {[%clk 0:03:01.1]}
2... Nc6 {[%clk 0:03:00.5]} 3. Bb5 {[%clk 0:03:01.2]} 3... g6 {[%clk 0:03:00.2]}
4. Bxc6 {[%clk 0:03:01.3]} 4... dxc6 {[%clk 0:03:01.1]} 5. d3 {[%clk 0:03:00.7]}
5... Bg7 {[%clk 0:03:01]} 6. h3 {[%clk 0:03:01.2]} 6... Qc7 {[%clk 0:03:01.2]}
7. Nc3 {[%clk 0:02:59.2]} 7... e5 {[%clk 0:03:00.5]} 8. Be3 {[%clk 0:02:57.9]}
8... b6 {[%clk 0:03:00.9]} 9. a4 {[%clk 0:02:57.9]} 9... a5 {[%clk 0:03:00.1]}
10. Qd2 {[%clk 0:02:57.3]} 10... h6 {[%clk 0:03:00.7]} 11. Nh2 {[%clk
0:02:52.7]} 11... Ne7 {[%clk 0:02:30.3]} 12. f4 {[%clk 0:02:39.9]} 12... Be6
{[%clk 0:02:22.1]} 13. O-O {[%clk 0:02:37.2]} 13... O-O-O {[%clk 0:02:09.7]} 14.
Nf3 {[%clk 0:02:28.1]} 14... f5 {[%clk 0:01:44.8]} 15. Nxe5 {[%clk 0:02:21.9]}
15... Bxe5 {[%clk 0:01:43.9]} 16. fxe5 {[%clk 0:02:22.8]} 16... Qxe5 {[%clk
0:01:43.9]} 17. Bxh6 {[%clk 0:01:55.9]} 17... fxe4 {[%clk 0:01:32.2]} 18. Rae1
{[%clk 0:01:00.1]} 18... Bxh3 {[%clk 0:01:06.3]} 19. Rxe4 {[%clk 0:00:51.6]}
19... Qh5 {[%clk 0:00:48.8]} 20. Rxe7 {[%clk 0:00:28.1]} 20... Rxh6 {[%clk
0:00:35.4]} 21. gxh3 {[%clk 0:00:26.2]} 21... Qxh3 {[%clk 0:00:31.3]} 22. Qg2
{[%clk 0:00:26]} 22... Qxg2+ {[%clk 0:00:13.8]} 23. Kxg2 {[%clk 0:00:26.9]}
23... Rdh8 {[%clk 0:00:13.5]} 24. Ne4 {[%clk 0:00:19.2]} 24... Rh2+ {[%clk
0:00:13.4]} 25. Kg3 {[%clk 0:00:19]} 25... R8h3+ {[%clk 0:00:10.6]} 26. Kg4
{[%clk 0:00:18.8]} 26... Rh4+ {[%clk 0:00:08.9]} 27. Kg5 {[%clk 0:00:19]} 27...
Rh5+ {[%clk 0:00:04.1]} 28. Kf6 {[%clk 0:00:15.8]} 28... Rxc2 {[%clk 0:00:02.5]}
29. Ke6 {[%clk 0:00:15.6]} 29... Rxb2 {[%clk 0:00:01.5]} 30. Rf8# {[%clk
0:00:14.8]} 1-0

[Event "Early-Titled-Tuesday-Blitz-August-29-2023"]
[Site "Chess.com"]
[Date "2023.08.29"]
[Round "4"]
[White "jaskol95"]
[Black "Eternauta2400"]
[Result "1-0"]
[WhiteElo "2568"]
[BlackElo "2788"]
[TimeControl "180+1"]
[EndTime "8:39:03 PDT"]
[Termination "jaskol95 won on time"]

1. e4 {[%clk 0:03:00.9]} 1... c6 {[%clk 0:03:00.1]} 2. d4 {[%clk 0:02:50.7]}
2... d5 {[%clk 0:03:01]} 3. e5 {[%clk 0:02:50]} 3... Bf5 {[%clk 0:03:00.6]} 4.
Nd2 {[%clk 0:02:46.3]} 4... e6 {[%clk 0:03:00]} 5. Nb3 {[%clk 0:02:46.8]} 5...
Nd7 {[%clk 0:03:00.1]} 6. Nf3 {[%clk 0:02:47.3]} 6... Qc7 {[%clk 0:02:59.9]} 7.
Be3 {[%clk 0:02:45.5]} 7... a6 {[%clk 0:02:56.1]} 8. Be2 {[%clk 0:02:42.8]} 8...
c5 {[%clk 0:02:55.9]} 9. dxc5 {[%clk 0:02:42.3]} 9... Bxc5 {[%clk 0:02:56.3]}
10. Nxc5 {[%clk 0:02:42.6]} 10... Nxc5 {[%clk 0:02:57.2]} 11. O-O {[%clk
0:02:42.4]} 11... Ne7 {[%clk 0:02:57.5]} 12. c4 {[%clk 0:02:41.8]} 12... O-O
{[%clk 0:02:56.9]} 13. Rc1 {[%clk 0:02:40.3]} 13... Ne4 {[%clk 0:01:39.9]} 14.
cxd5 {[%clk 0:02:36.9]} 14... Qa5 {[%clk 0:01:40]} 15. d6 {[%clk 0:02:29.2]}
15... Nd5 {[%clk 0:01:40]} 16. Qd4 {[%clk 0:02:11.3]} 16... f6 {[%clk
0:01:30.7]} 17. Bc4 {[%clk 0:01:43.3]} 17... fxe5 {[%clk 0:01:26.8]} 18. Qxe5
{[%clk 0:01:38.6]} 18... Rad8 {[%clk 0:01:21.4]} 19. b4 {[%clk 0:00:59.3]} 19...
Qxb4 {[%clk 0:01:08.5]} 20. Bxd5 {[%clk 0:00:59.5]} 20... exd5 {[%clk
0:01:09.4]} 21. Qxd5+ {[%clk 0:01:00.4]} 21... Kh8 {[%clk 0:01:09.7]} 22. Ne5
{[%clk 0:00:52]} 22... Nxd6 {[%clk 0:01:06.8]} 23. Bc5 {[%clk 0:00:47.2]} 23...
Qa5 {[%clk 0:00:20.8]} 24. Rfd1 {[%clk 0:00:46.6]} 24... Be4 {[%clk 0:00:03.5]}
25. Qd4 {[%clk 0:00:38.3]} 25... Rde8 {[%clk 0:00:01.6]} 26. Qxd6 {[%clk
0:00:36.3]} 26... Rf4 {[%clk 0:00:02.3]} 27. Ng6+ {[%clk 0:00:29.8]} 27... hxg6
{[%clk 0:00:03.2]} 28. Qxf4 {[%clk 0:00:30.2]} 28... Qxa2 {[%clk 0:00:02.6]} 29.
Re1 {[%clk 0:00:27.6]} 29... Qd5 {[%clk 0:00:01.6]} 30. f3 {[%clk 0:00:19]}
30... g5 {[%clk 0:00:01.8]} 31. Qg4 {[%clk 0:00:15.9]} 1-0

[Event "Early-Titled-Tuesday-Blitz-August-29-2023"]
[Site "Chess.com"]
[Date "2023.08.29"]
[Round "4"]
[White "JoliyRoger"]
[Black "HrvojeZagreb"]
[Result "1-0"]
[WhiteElo "2498"]
[BlackElo "2286"]
[TimeControl "180+1"]
[EndTime "8:39:05 PDT"]
[Termination "JoliyRoger won on time"]

1. d4 {[%clk 0:03:00.9]} 1... d5 {[%clk 0:02:52.2]} 2. c4 {[%clk 0:02:59.8]}
2... e6 {[%clk 0:02:40.1]} 3. Nc3 {[%clk 0:02:43.6]} 3... f5 {[%clk 0:02:39.7]}
4. Bf4 {[%clk 0:02:41.7]} 4... c6 {[%clk 0:02:39.7]} 5. g3 {[%clk 0:02:39.4]}
5... Nf6 {[%clk 0:02:39.3]} 6. Bg2 {[%clk 0:02:39]} 6... Be7 {[%clk 0:02:38.2]}
7. Nf3 {[%clk 0:02:38.7]} 7... O-O {[%clk 0:02:37.9]} 8. O-O {[%clk 0:02:39.4]}
8... Ne4 {[%clk 0:02:37.9]} 9. Qc2 {[%clk 0:02:38.6]} 9... b6 {[%clk 0:02:36.2]}
10. Rac1 {[%clk 0:02:37.5]} 10... Bb7 {[%clk 0:02:36.1]} 11. Rfd1 {[%clk
0:02:38]} 11... Nd7 {[%clk 0:02:34.6]} 12. Ne5 {[%clk 0:02:38.2]} 12... Nxe5
{[%clk 0:02:30.9]} 13. Bxe5 {[%clk 0:02:38.8]} 13... Bf6 {[%clk 0:02:27.9]} 14.
Bxf6 {[%clk 0:02:36.5]} 14... Qxf6 {[%clk 0:02:28]} 15. e3 {[%clk 0:02:37.1]}
15... Rac8 {[%clk 0:02:24.5]} 16. Ne2 {[%clk 0:02:36.5]} 16... g5 {[%clk
0:02:22.2]} 17. f3 {[%clk 0:02:34.9]} 17... Nd6 {[%clk 0:02:19.5]} 18. c5 {[%clk
0:02:32.4]} 18... Nc4 {[%clk 0:01:51.6]} 19. Qc3 {[%clk 0:02:08.7]} 19... bxc5
{[%clk 0:01:51.5]} 20. b3 {[%clk 0:01:37.1]} 20... cxd4 {[%clk 0:01:50.1]} 21.
exd4 {[%clk 0:01:37.2]} 21... Nd6 {[%clk 0:01:44]} 22. Qc5 {[%clk 0:01:36.9]}
22... e5 {[%clk 0:01:34.8]} 23. dxe5 {[%clk 0:01:26.4]} 23... Qxe5 {[%clk
0:01:33]} 24. Nd4 {[%clk 0:01:27.1]} 24... Qf6 {[%clk 0:00:59.5]} 25. Re1 {[%clk
0:01:21.3]} 25... Rfe8 {[%clk 0:00:59.2]} 26. Rxe8+ {[%clk 0:01:15.6]} 26...
Rxe8 {[%clk 0:00:56.5]} 27. Nxc6 {[%clk 0:01:06.2]} 27... Bxc6 {[%clk
0:00:39.2]} 28. Qxc6 {[%clk 0:01:05.7]} 28... Qe5 {[%clk 0:00:37.3]} 29. f4
{[%clk 0:00:54.3]} 29... Qe3+ {[%clk 0:00:36.4]} 30. Kh1 {[%clk 0:00:54.9]}
30... Kg7 {[%clk 0:00:11.9]} 31. Bxd5 {[%clk 0:00:28.4]} 31... Ne4 {[%clk
0:00:05.6]} 32. Bxe4 {[%clk 0:00:27.4]} 32... Qxe4+ {[%clk 0:00:02]} 33. Qxe4
{[%clk 0:00:27.1]} 33... fxe4 {[%clk 0:00:01.5]} 34. fxg5 {[%clk 0:00:25.5]} 1-0

[Event "Early-Titled-Tuesday-Blitz-August-29-2023"]
[Site "Chess.com"]
[Date "2023.08.29"]
[Round "4"]
[White "jasrom"]
[Black "Iskusnyh"]
[Result "0-1"]
[WhiteElo "2415"]
[BlackElo "2627"]
[TimeControl "180+1"]
[EndTime "8:39:07 PDT"]
[Termination "Iskusnyh won on time"]

1. e4 {[%clk 0:02:56.3]} 1... e6 {[%clk 0:02:59.4]} 2. d4 {[%clk 0:02:54.3]}
2... d5 {[%clk 0:02:59.4]} 3. e5 {[%clk 0:02:51.4]} 3... c5 {[%clk 0:02:54.7]}
4. c3 {[%clk 0:02:51.2]} 4... Nc6 {[%clk 0:02:55]} 5. Nf3 {[%clk 0:02:50.7]}
5... Nge7 {[%clk 0:02:55.3]} 6. Bd3 {[%clk 0:02:47.2]} 6... cxd4 {[%clk
0:02:44.4]} 7. cxd4 {[%clk 0:02:46.4]} 7... Nf5 {[%clk 0:02:43.6]} 8. Bxf5
{[%clk 0:02:36.5]} 8... exf5 {[%clk 0:02:44.5]} 9. Nc3 {[%clk 0:02:34.1]} 9...
Be6 {[%clk 0:02:41.4]} 10. O-O {[%clk 0:02:30.8]} 10... Be7 {[%clk 0:02:39.6]}
11. Be3 {[%clk 0:02:30.7]} 11... g5 {[%clk 0:02:34]} 12. g3 {[%clk 0:01:53.9]}
12... f4 {[%clk 0:02:32]} 13. gxf4 {[%clk 0:01:51.1]} 13... gxf4 {[%clk
0:02:32.9]} 14. Bxf4 {[%clk 0:01:49.7]} 14... Bh3 {[%clk 0:02:30.9]} 15. Re1
{[%clk 0:01:48.9]} 15... Rg8+ {[%clk 0:02:20]} 16. Bg3 {[%clk 0:01:48.5]} 16...
h5 {[%clk 0:02:19.6]} 17. Qb3 {[%clk 0:01:41.6]} 17... h4 {[%clk 0:01:47.4]} 18.
Qxb7 {[%clk 0:01:37.6]} 18... Rc8 {[%clk 0:01:35.7]} 19. Rac1 {[%clk 0:01:22]}
19... hxg3 {[%clk 0:01:30.3]} 20. hxg3 {[%clk 0:01:21.6]} 20... Bg4 {[%clk
0:01:21.6]} 21. Nh2 {[%clk 0:01:14.6]} 21... Nxd4 {[%clk 0:01:05.5]} 22. Nxg4
{[%clk 0:01:07.8]} 22... Rxg4 {[%clk 0:01:04.6]} 23. Kg2 {[%clk 0:00:50.2]}
23... Ne6 {[%clk 0:00:54.4]} 24. Nxd5 {[%clk 0:00:17.4]} 24... Rb8 {[%clk
0:00:51.3]} 25. Qc6+ {[%clk 0:00:14.3]} 25... Kf8 {[%clk 0:00:47.9]} 26. Ne3
{[%clk 0:00:05.7]} 26... Rd4 {[%clk 0:00:29]} 27. Red1 {[%clk 0:00:05.2]} 27...
Rxb2 {[%clk 0:00:25.9]} 28. Rxd4 {[%clk 0:00:04.6]} 28... Qxd4 {[%clk
0:00:25.5]} 29. Qf3 {[%clk 0:00:02.4]} 29... Rb8 {[%clk 0:00:19]} 30. Nf5 {[%clk
0:00:01.2]} 30... Qxe5 {[%clk 0:00:18.1]} 0-1

[Event "Early-Titled-Tuesday-Blitz-August-29-2023"]
[Site "Chess.com"]
[Date "2023.08.29"]
[Round "4"]
[White "ViIIagra"]
[Black "WhiteKnight2612"]
[Result "0-1"]
[WhiteElo "2927"]
[BlackElo "2831"]
[TimeControl "180+1"]
[EndTime "8:39:08 PDT"]
[Termination "WhiteKnight2612 won on time"]

1. d4 {[%clk 0:02:58.1]} 1... Nf6 {[%clk 0:02:58.9]} 2. Nf3 {[%clk 0:02:58.7]}
2... g6 {[%clk 0:02:57.2]} 3. Nbd2 {[%clk 0:02:58.1]} 3... d5 {[%clk 0:02:53.1]}
4. Nb3 {[%clk 0:02:58.3]} 4... Bg7 {[%clk 0:02:53.2]} 5. Bf4 {[%clk 0:02:58.5]}
5... O-O {[%clk 0:02:53]} 6. h3 {[%clk 0:02:58.7]} 6... a5 {[%clk 0:02:50.5]} 7.
a4 {[%clk 0:02:58.8]} 7... b6 {[%clk 0:02:49.8]} 8. e3 {[%clk 0:02:58.6]} 8...
Ba6 {[%clk 0:02:50.2]} 9. Bxa6 {[%clk 0:02:47.7]} 9... Nxa6 {[%clk 0:02:49.9]}
10. O-O {[%clk 0:02:48.1]} 10... Nd7 {[%clk 0:02:49]} 11. Qe2 {[%clk 0:02:43.7]}
11... Re8 {[%clk 0:02:44.7]} 12. Rfd1 {[%clk 0:02:40.1]} 12... Qc8 {[%clk
0:02:40.1]} 13. c4 {[%clk 0:02:37.5]} 13... e6 {[%clk 0:02:32]} 14. Rac1 {[%clk
0:02:34.2]} 14... c6 {[%clk 0:02:31.4]} 15. e4 {[%clk 0:02:26.5]} 15... dxe4
{[%clk 0:02:28.4]} 16. Qxe4 {[%clk 0:02:27.4]} 16... Nb4 {[%clk 0:02:28.5]} 17.
Rd2 {[%clk 0:02:03.6]} 17... Qa6 {[%clk 0:02:17.6]} 18. Ne5 {[%clk 0:01:55.6]}
18... Nxe5 {[%clk 0:02:05.2]} 19. dxe5 {[%clk 0:01:56.5]} 19... Rad8 {[%clk
0:01:47.3]} 20. Rcd1 {[%clk 0:01:56.7]} 20... Rxd2 {[%clk 0:01:42.7]} 21. Rxd2
{[%clk 0:01:57.6]} 21... Bf8 {[%clk 0:01:42.5]} 22. Bg5 {[%clk 0:01:52.5]} 22...
b5 {[%clk 0:01:38.8]} 23. Rd7 {[%clk 0:01:09]} 23... Qc8 {[%clk 0:01:28.2]} 24.
Ra7 {[%clk 0:01:08.9]} 24... Qb8 {[%clk 0:01:21.1]} 25. Rxa5 {[%clk 0:01:07.8]}
25... bxc4 {[%clk 0:01:16.4]} 26. Qxc4 {[%clk 0:01:07.3]} 26... Nd5 {[%clk
0:01:01.1]} 27. Bf6 {[%clk 0:00:56]} 27... Qb7 {[%clk 0:00:49.2]} 28. Nd4 {[%clk
0:00:23.3]} 28... Qxb2 {[%clk 0:00:48.4]} 29. Nxc6 {[%clk 0:00:23.9]} 29... Nxf6
{[%clk 0:00:31.9]} 30. exf6 {[%clk 0:00:24.8]} 30... Qa1+ {[%clk 0:00:32.2]} 31.
Qf1 {[%clk 0:00:18.3]} 31... Qxf6 {[%clk 0:00:32.6]} 32. Ra7 {[%clk 0:00:04.3]}
32... e5 {[%clk 0:00:33]} 33. Qc4 {[%clk 0:00:04.6]} 33... e4 {[%clk 0:00:31.3]}
34. Nd4 {[%clk 0:00:02.1]} 34... e3 {[%clk 0:00:29.4]} 35. fxe3 {[%clk 0:00:03]}
35... Rxe3 {[%clk 0:00:28.9]} 36. Nf3 {[%clk 0:00:03.7]} 36... Rc3 {[%clk
0:00:25.5]} 0-1

[Event "Early-Titled-Tuesday-Blitz-August-29-2023"]
[Site "Chess.com"]
[Date "2023.08.29"]
[Round "4"]
[White "astralpulse"]
[Black "kasun_bole"]
[Result "0-1"]
[WhiteElo "2614"]
[BlackElo "2342"]
[TimeControl "180+1"]
[EndTime "8:39:08 PDT"]
[Termination "kasun_bole won on time"]

1. e4 {[%clk 0:02:59.6]} 1... c5 {[%clk 0:02:58.9]} 2. Nf3 {[%clk 0:02:58.2]}
2... d6 {[%clk 0:02:58.8]} 3. Bb5+ {[%clk 0:02:58.5]} 3... Nd7 {[%clk
0:02:57.1]} 4. O-O {[%clk 0:02:57.1]} 4... Nf6 {[%clk 0:02:56.9]} 5. Re1 {[%clk
0:02:56.3]} 5... a6 {[%clk 0:02:56.1]} 6. Bf1 {[%clk 0:02:56]} 6... e5 {[%clk
0:02:55.8]} 7. c3 {[%clk 0:02:55.8]} 7... Be7 {[%clk 0:02:55.3]} 8. d4 {[%clk
0:02:55.8]} 8... cxd4 {[%clk 0:02:55.7]} 9. cxd4 {[%clk 0:02:55.6]} 9... O-O
{[%clk 0:02:55.3]} 10. Nc3 {[%clk 0:02:55.6]} 10... b5 {[%clk 0:02:55.3]} 11. a3
{[%clk 0:02:40]} 11... Bb7 {[%clk 0:02:54.7]} 12. Bg5 {[%clk 0:02:38.3]} 12...
Rc8 {[%clk 0:02:54.1]} 13. Rc1 {[%clk 0:02:34.8]} 13... h6 {[%clk 0:02:53.6]}
14. Bh4 {[%clk 0:02:27.9]} 14... exd4 {[%clk 0:02:46.4]} 15. Nxd4 {[%clk
0:02:23.9]} 15... Nc5 {[%clk 0:02:46.1]} 16. f3 {[%clk 0:02:14.5]} 16... Re8
{[%clk 0:02:21.8]} 17. Bf2 {[%clk 0:02:13]} 17... Bf8 {[%clk 0:02:08.6]} 18. Nf5
{[%clk 0:02:12]} 18... g6 {[%clk 0:01:58.2]} 19. Nd4 {[%clk 0:02:10.3]} 19...
Bg7 {[%clk 0:01:57.8]} 20. b4 {[%clk 0:02:03.7]} 20... Ne6 {[%clk 0:01:54.2]}
21. Qd2 {[%clk 0:01:57.4]} 21... d5 {[%clk 0:01:52.6]} 22. e5 {[%clk 0:01:57.3]}
22... Nd7 {[%clk 0:01:49.6]} 23. f4 {[%clk 0:01:45.8]} 23... Nb6 {[%clk
0:01:48.4]} 24. Nxe6 {[%clk 0:01:43.1]} 24... fxe6 {[%clk 0:01:46.9]} 25. Qd3
{[%clk 0:01:23.7]} 25... Kh7 {[%clk 0:01:43.9]} 26. h4 {[%clk 0:01:20.4]} 26...
h5 {[%clk 0:01:41]} 27. Qg3 {[%clk 0:01:17]} 27... Rg8 {[%clk 0:01:33.3]} 28.
Bd3 {[%clk 0:01:12.8]} 28... Bh6 {[%clk 0:01:31]} 29. Ne2 {[%clk 0:01:03.2]}
29... Nc4 {[%clk 0:01:28.9]} 30. Bc5 {[%clk 0:00:46]} 30... Bf8 {[%clk
0:01:26.5]} 31. Nd4 {[%clk 0:00:43.4]} 31... Bxc5 {[%clk 0:01:23.6]} 32. bxc5
{[%clk 0:00:42.4]} 32... Qe7 {[%clk 0:01:21.7]} 33. Kh2 {[%clk 0:00:19.1]} 33...
Rxc5 {[%clk 0:01:09.7]} 34. Qh3 {[%clk 0:00:19.2]} 34... Rf8 {[%clk 0:00:59.5]}
35. Rf1 {[%clk 0:00:17.1]} 35... Nd2 {[%clk 0:00:51.7]} 36. Rfd1 {[%clk
0:00:12.3]} 36... Rxc1 {[%clk 0:00:46.6]} 37. Rxc1 {[%clk 0:00:12.1]} 37... Rxf4
{[%clk 0:00:45.5]} 38. Qxe6 {[%clk 0:00:10.1]} 38... Qxh4+ {[%clk 0:00:41]} 39.
Kg1 {[%clk 0:00:08.7]} 39... Qf2+ {[%clk 0:00:40.3]} 40. Kh2 {[%clk 0:00:08.4]}
40... Rh4+ {[%clk 0:00:39.4]} 0-1